fUSD/lending_fUSD_20240506
["ID","MTS","AMOUNT","RATE_DAILY","PERIOD"]
[326510848,1715031093439,-717.94,0.00025753,6]
[326510849,1715031093448,-1191.24,0.00025753,6]
[326510850,1715031093457,-500.0,0.00025753,6]
[326510851,1715031093467,-646.99,0.00025753,6]
[326510852,1715031093478,-3063.29,0.00025753,6]
[326510853,1715031093488,-500.0,0.00025753,6]
[326510854,1715031093497,-501.45740216,0.00025753,2]
[326510855,1715031093508,-854.85,0.00025753,6]
[326510856,1715031093517,-500.0,0.00025753,6]
[326510857,1715031093527,-577.97,0.00025753,6]
[326510858,1715031093537,-1191.23,0.00025753,6]
[326510859,1715031093546,-500.0,0.00025753,6]
[326510860,1715031093556,-1220.4,0.00025753,6]
[326510861,1715031093565,-500.0,0.00025753,6]
[326510862,1715031093575,-534.39,0.00025753,6]
[326510863,1715031093584,-500.0,0.00025753,6]
[326510864,1715031093594,-500.0,0.00025753,6]
[326510865,1715031093603,-958.76,0.00025753,6]
[326510866,1715031093612,-1391.03,0.00025753,6]
[326510867,1715031093622,-1722.29,0.00025753,6]
[326510868,1715031093632,-771.17,0.00025753,6]
[326510869,1715031093642,-934.79,0.00025753,6]
[326510870,1715031093654,-1630.7,0.00025753,6]
[326510871,1715031093666,-224.6291367,0.00025753,6]
[326510872,1715031093676,-500.0,0.00025753,6]
[326510873,1715031093686,-500.0,0.00025753,6]
[326510874,1715031093697,-500.0,0.00025753,6]
[326510875,1715031093707,-605.93,0.00025753,6]
[326510876,1715031093716,-2117.95,0.00025753,6]
[326510877,1715031093727,-500.0,0.00025753,6]
[326510878,1715031093737,-500.0,0.00025753,6]
[326510879,1715031093748,-955.37,0.00025753,6]
[326510880,1715031093757,-500.0,0.00025753,6]
[326510881,1715031093767,-682.78,0.00025753,6]
[326510882,1715031093776,-617.33,0.00025753,6]
[326510883,1715031093785,-594.89,0.00025753,6]
[326510884,1715031093797,-500.0,0.00025753,6]
[326510885,1715031093807,-500.0,0.00025753,6]
[326510886,1715031093817,-386.17329106,0.00025753,6]
[326510887,1715031093827,-743.6,0.00025753,6]
[326510888,1715031093837,-963.82,0.00025753,6]
[326510889,1715031093846,-500.0,0.00025753,6]
[326510890,1715031093856,-1095.91,0.00025753,6]
[326510891,1715031093868,-314.18482603,0.00025753,6]
[326510892,1715031093877,-906.36,0.00025753,6]
[326510893,1715031093887,-562.29,0.00025753,6]
[326510894,1715031093898,-922.9,0.00025753,6]
[326510895,1715031093909,-997.0,0.00025753,6]
[326510896,1715031093921,-627.0,0.00025753,6]
[326510897,1715031093932,-947.33,0.00025753,6]
[326510898,1715031093942,-500.0,0.00025753,6]
[326510899,1715031093953,-1151.25,0.00025753,6]
[326510900,1715031093964,-1254.41,0.00025753,6]
[326510901,1715031093975,-500.0,0.00025753,6]
[326510902,1715031093987,-1451.22,0.00025753,6]
[326510903,1715031093999,-1045.05,0.00025753,6]
[326510904,1715031094015,-647.71,0.00025753,6]
[326510905,1715031094025,-194.32,0.00025753,6]
[326510906,1715031094036,-1459.88,0.00025753,6]
[326510907,1715031094048,-2042.33,0.00025753,6]
[326510908,1715031094059,-1581.94,0.00025753,6]
[326510909,1715031094069,-581.56,0.00025753,6]
[326510910,1715031094082,-960.87,0.00025753,6]
[326510911,1715031094092,-533.55,0.00025753,6]
[326510912,1715031094104,-511.24515396,0.00025753,6]
[326510913,1715031094113,-500.0,0.00025753,6]
[326510914,1715031094123,-630.38,0.00025753,6]
[326510915,1715031094132,-1313.35,0.00025753,6]
[326510916,1715031094143,-500.0,0.00025753,6]
[326510917,1715031094152,-933.47,0.00025753,6]
[326510918,1715031094162,-500.0,0.00025753,6]
[326510919,1715031094171,-500.0,0.00025753,6]
[326510920,1715031094181,-1769.97,0.00025753,6]
[326510921,1715031094191,-912.28,0.00025753,6]
[326510922,1715031094201,-1841.63,0.00025753,6]
[326510923,1715031094210,-1624.71,0.00025753,6]
[326510924,1715031094220,-720.73,0.00025753,6]
[326510925,1715031094229,-1372.52,0.00025753,6]
[326510926,1715031094238,-500.0,0.00025753,6]
[326510927,1715031094247,-639.36,0.00025753,6]
[326510928,1715031094257,-825.94,0.00025753,6]
[326510929,1715031094272,-666.76,0.00025753,6]
[326510930,1715031094292,-1416.39,0.00025753,6]
[326510931,1715031094301,-500.0,0.00025753,6]
[326510932,1715031094311,-1466.88,0.00025753,6]
[326510933,1715031094320,-873.1,0.00025753,6]
[326510934,1715031094330,-747.74,0.00025753,6]
[326510935,1715031094340,-500.0,0.00025753,6]
[326510936,1715031094350,-2492.32,0.00025753,6]
[326510937,1715031094359,-500.0,0.00025753,6]
[326510938,1715031094369,-642.01,0.00025753,6]
[326510939,1715031094378,-1062.48,0.00025753,6]
[326510940,1715031094387,-584.12,0.00025753,6]
[326510941,1715031094397,-1383.69,0.00025753,6]
[326510942,1715031094406,-881.15,0.00025753,6]
[326510943,1715031094416,-1515.0,0.00025753,6]
[326510944,1715031094425,-908.99,0.00025753,6]
[326510945,1715031094436,-3000.0,0.00025753,3]
[326510946,1715031094445,-995.08,0.00025753,6]
[326510947,1715031094455,-2058.58,0.00025753,6]
[326510948,1715031094466,-1846.04,0.00025753,6]
[326510949,1715031094476,-1462.03,0.00025753,6]
[326510950,1715031094485,-1712.85,0.00025753,6]
[326510951,1715031094495,-932.0,0.00025753,6]
[326510952,1715031094505,-1810.72,0.00025753,6]
[326510953,1715031094514,-500.0,0.00025753,6]
[326510954,1715031094525,-906.35,0.00025753,6]
[326510955,1715031094535,-1605.13,0.00025753,6]
[326510956,1715031094545,-500.0,0.00025753,6]
[326510957,1715031094554,-500.0,0.00025753,6]
[326510958,1715031094564,-851.98,0.00025753,6]
[326510959,1715031094573,-544.26,0.00025753,6]
[326510960,1715031094583,-1572.65,0.00025753,6]
[326510961,1715031094593,-500.0,0.00025753,6]
[326510962,1715031094602,-971.29,0.00025753,6]
[326510963,1715031094613,-248.79053625,0.00025753,6]
[326510964,1715031094639,-1169.00946375,0.00025753,6]
[326510965,1715031094648,-500.0,0.00025753,6]
[326510966,1715031094658,-1078.05,0.00025753,6]
[326510967,1715031094667,-500.0,0.00025753,6]
[326510968,1715031094677,-500.0,0.00025753,6]
[326510969,1715031094686,-667.21,0.00025753,6]
[326510970,1715031094695,-500.0,0.00025753,6]
[326510971,1715031094705,-1671.76,0.00025753,6]
[326510972,1715031094716,-1564.83,0.00025753,6]
[326510973,1715031094727,-1001.72,0.00025753,6]
[326510974,1715031094737,-1060.91,0.00025753,6]
[326510975,1715031094747,-500.0,0.00025753,6]
[326510976,1715031094757,-699.43,0.00025753,6]
[326510977,1715031094767,-987.31,0.00025753,6]
[326510978,1715031094776,-586.72,0.00025753,6]
[326510979,1715031094787,-1866.92,0.00025753,6]
[326510980,1715031094797,-1558.72,0.00025753,6]
[326510981,1715031094806,-1209.02,0.00025753,6]
[326510982,1715031094816,-500.0,0.00025753,6]
[326510983,1715031094825,-518.77,0.00025753,6]
[326510984,1715031094835,-931.46,0.00025753,6]
[326510985,1715031094845,-500.0,0.00025753,6]
[326510986,1715031094854,-681.31,0.00025753,6]
[326510987,1715031094863,-500.0,0.00025753,6]
[326510988,1715031094872,-2203.32,0.00025753,6]
[326510989,1715031094882,-1493.62,0.00025753,6]
[326510990,1715031094893,-500.0,0.00025753,6]
[326510991,1715031094903,-523.3,0.00025753,6]
[326510992,1715031094917,-1013.52,0.00025753,6]
[326510993,1715031094927,-569.54,0.00025753,6]
[326510994,1715031094937,-662.05,0.00025753,6]
[326510995,1715031094947,-1726.92,0.00025753,6]
[326510996,1715031094956,-2222.87,0.00025753,6]
[326510997,1715031094964,-1077.66,0.00025753,6]
[326510998,1715031094974,-723.21,0.00025753,6]
[326510999,1715031094983,-703.39,0.00025753,6]
[326511000,1715031094993,-562.36,0.00025753,6]
[326511001,1715031095003,-648.58,0.00025753,6]
[326511002,1715031095017,-792.33,0.00025753,6]
[326511003,1715031095026,-500.0,0.00025753,6]
[326511004,1715031095036,-500.0,0.00025753,6]
[326511005,1715031095046,-1175.62,0.00025753,6]
[326511006,1715031095055,-1077.47,0.00025753,6]
[326511007,1715031095066,-1387.01,0.00025753,6]
[326511008,1715031095077,-748.63,0.00025753,6]
[326511009,1715031095086,-1833.82,0.00025753,6]
[326511010,1715031095099,-1649.59,0.00025753,6]
[326511011,1715031095110,-964.03,0.00025753,6]
[326511012,1715031095120,-534.17,0.00025753,6]
[326511013,1715031095130,-1169.09,0.00025753,6]
[326511014,1715031095140,-500.0,0.00025753,6]
[326511015,1715031095150,-555.05,0.00025753,6]
[326511016,1715031095159,-500.0,0.00025753,6]
[326511017,1715031095168,-229.70053625,0.00025753,6]
[326511018,1715031095831,-438.90946375,0.00025753,6]
[326511019,1715031095843,-500.0,0.00025753,6]
[326511020,1715031095852,-1998.54053625,0.00025753,6]
[326511021,1715031096051,-2386.86887887,0.00022,2]
[326511022,1715031096060,-500.0,0.00024657,2]
[326511023,1715031096070,-289.29946375,0.00025753,6]
[326511024,1715031096079,-500.0,0.00025753,6]
[326511025,1715031096090,-300.0,0.00025753,6]
[326511026,1715031096100,-3315.17,0.00025753,6]
[326511027,1715031096109,-1053.76,0.00025753,6]
[326511028,1715031096118,-587.69,0.00025753,6]
[326511029,1715031096128,-1007.77,0.00025753,6]
[326511030,1715031096138,-2928.99,0.00025753,2]
[326511031,1715031096147,-500.0,0.00025753,6]
[326511032,1715031096156,-500.0,0.00025753,6]
[326511033,1715031096166,-500.0,0.00025753,6]
[326511034,1715031096175,-500.0,0.00025753,6]
[326511035,1715031096187,-1786.34,0.00025753,6]
[326511036,1715031096197,-1354.6,0.00025753,6]
[326511037,1715031096207,-656.24,0.00025753,6]
[326511038,1715031096218,-500.0,0.00025753,6]
[326511039,1715031096227,-1109.65,0.00025753,6]
[326511040,1715031096238,-500.0,0.00025753,6]
[326511041,1715031096251,-500.0,0.00025753,6]
[326511042,1715031096260,-1113.02,0.00025753,6]
[326511043,1715031096270,-4056.47,0.00025753,6]
[326511044,1715031096280,-681.11,0.00025753,6]
[326511045,1715031096289,-500.0,0.00025753,6]
[326511046,1715031096298,-796.07,0.00025753,6]
[326511047,1715031096308,-508.50630187,0.00025753,6]
[326511048,1715031096318,-1420.26,0.00025753,6]
[326511049,1715031096328,-500.0,0.00025753,6]
[326511050,1715031096338,-500.0,0.00025753,6]
[326511051,1715031096349,-500.0,0.00025753,6]
[326511052,1715031096359,-500.0,0.00025753,6]
[326511053,1715031096368,-794.82,0.00025753,6]
[326511054,1715031096378,-500.0,0.00025753,6]
[326511055,1715031096389,-558.42,0.00025753,6]
[326511056,1715031096399,-653.67,0.00025753,6]
[326511057,1715031096409,-995.72,0.00025753,6]
[326511058,1715031096418,-500.0,0.00025753,6]
[326511059,1715031096428,-523.98,0.00025753,6]
[326511060,1715031096438,-1842.59,0.00025753,6]
[326511061,1715031096448,-1178.98535551,0.00025753,6]
[326511062,1715031096614,-2386.86887887,0.00022,2]
[326511063,1715031096624,-530.42464449,0.00025753,6]
[326511064,1715031096634,-8661.01542076,0.00025753,6]
[326511065,1715031110239,2040.85316132,0.00012,2]
[326511069,1715031177685,46198.32101027,0.00012,2]
[326511070,1715031178620,345147.26730982,0.00012,2]
[326511071,1715031206727,558.3796997,0.00012,2]
[326511072,1715031224169,676642.29157496,0.00013,2]
[326511098,1715032234981,-301.90641716,0.00012428,2]
[326511104,1715032234991,-155.0,0.00012429,2]
[326511109,1715032235001,-705.35582076,0.00012462,2]
[326511113,1715032235013,-198.74417924,0.00012462,2]
[326511118,1715032235024,-286.01,0.00012598,2]
[326511121,1715032235034,-600.0,0.0001267,2]
[326511124,1715032235044,-151.45,0.00012816,2]
[326511126,1715032235057,-150.0,0.00012877,2]
[326511128,1715032235067,-587.65,0.00012891,2]
[326511130,1715032235077,-151.29251736,0.00012897,2]
[326511132,1715032235087,-150.99,0.00012897,2]
[326511134,1715032235097,-150.99,0.00012897,2]
[326511136,1715032235107,-184.18194571,0.00012899,2]
[326511138,1715032235119,-150.0,0.00012899,2]
[326511139,1715032235129,-150.0,0.00012899,2]
[326511140,1715032235138,-1592.24811869,0.00012899,2]
[326511141,1715032235150,-2400.0,0.00012899,2]
[326511142,1715032235164,-5411.05188131,0.00012899,2]
[326511143,1715032235174,-337.49,0.00012899,2]
[326511144,1715032235185,-184.18194571,0.000129,2]
[326511145,1715032235196,-4531.31208889,0.000129,2]
[326511146,1715032235208,-321.86545617,0.000129,2]
[326511147,1715032235218,-152.44421668,0.000129,2]
[326511148,1715032235228,-151.29251735,0.00012951,2]
[326511149,1715032235238,-200.0,0.00012967,2]
[326511150,1715032235253,-614.28,0.00012971,2]
[326511151,1715032235263,-223.65370089,0.00012998,2]
[326511152,1715032235273,-1446.57144166,0.00012999,2]
[326511153,1715032235286,-1181.23933793,0.00012999,2]
[326511154,1715032235303,-419.67248778,0.00012999,2]
[326511155,1715032235315,-750.09517664,0.00012999,2]
[326511156,1715032235327,-1627.23699014,0.00012999,2]
[326511157,1715032235341,-376.2556118,0.00012999,2]
[326511158,1715032235353,-1229.285,0.00012999,2]
[326511159,1715032235365,-2335.98145631,0.00012999,2]
[326511160,1715032235379,-601.92309745,0.00012999,2]
[326511161,1715032235392,-2373.37664865,0.00012999,2]
[326511162,1715032235404,-1966.22875406,0.00012999,2]
[326511163,1715032235416,-7549.84155807,0.00012999,2]
[326511164,1715032235427,-1641.7,0.00012999,2]
[326511165,1715032235438,-4830.43984845,0.00012999,2]
[326511166,1715032235450,-6018.32790803,0.00012999,2]
[326511167,1715032235463,-308.68743525,0.00012999,2]
[326511168,1715032235476,-4932.28204737,0.00012999,2]
[326511169,1715032235487,-293.26397614,0.00012999,2]
[326511170,1715032235499,-650.23905597,0.00012999,2]
[326511171,1715032235510,-5479.2679418,0.00012999,2]
[326511172,1715032235522,-1299.02376926,0.00012999,2]
[326511173,1715032236106,-293.39062286,0.00012999,2]
[326511175,1715032236121,-482.676245,0.00012999,2]
[326511177,1715032236133,-1224.31720139,0.00012999,2]
[326511178,1715032236145,-304.34121688,0.00012999,2]
[326511179,1715032236157,-854.16488114,0.00012999,2]
[326511180,1715032236169,-464.47486671,0.00012999,2]
[326511181,1715032236181,-1132.38722525,0.00012999,2]
[326511182,1715032236193,-2291.08562381,0.00012999,2]
[326511183,1715032236205,-854.70609405,0.00012999,2]
[326511184,1715032236218,-5902.51031461,0.00012999,2]
[326511185,1715032236230,-154677.07446662,0.00012999,2]
[326511186,1715032236241,-457.41762964,0.00012999,2]
[326511187,1715032236253,-813.06510203,0.00012999,2]
[326511188,1715032236265,-3064.60664569,0.00012999,2]
[326511189,1715032236277,-924.39978716,0.00012999,2]
[326511190,1715032236293,-3649.70912852,0.00012999,2]
[326511191,1715032236308,-11525.58191322,0.00012999,2]
[326511192,1715032236356,-904.96532417,0.00012999,2]
[326511193,1715032236379,-357.46371413,0.00012999,2]
[326511194,1715032236395,-920.5160698,0.00012999,2]
[326511195,1715032236407,-448781.80223515,0.00012999,2]
[326511196,1715032236418,-499.99,0.00012999,2]
[326511197,1715032236428,-609222.51657241,0.00013,2]
[326511198,1715032236440,-31420.96678108,0.00013,2]
[326511199,1715032236452,-21584.95682334,0.00013,2]
[326511200,1715032236464,-45432.01332482,0.00013,2]
[326511201,1715032236477,-1381.95190557,0.00013,2]
[326511202,1715032236489,-1016.27333657,0.00013,2]
[326511203,1715032236502,-1966.21426794,0.00013,2]
[326511204,1715032236516,-2040.41244433,0.00013,2]
[326511205,1715032236529,-2142.48428039,0.00013,2]
[326511206,1715032236542,-165829.94164815,0.00013,2]
[326511207,1715032236554,-4002.19079221,0.00013,2]
[326511208,1715032236566,-55310.11213868,0.00013,2]
[326511209,1715032236578,-10076.94638976,0.00013,2]
[326511210,1715032236591,-331.5,0.00013,2]
[326511217,1715032241319,-155.0,0.00012427,2]
[326511222,1715032241330,-21698.41648984,0.00013,2]
[326511230,1715032241345,-303.94329984,0.00013,2]
[326511242,1715032242307,-390.72783605,0.00013,2]
[326511246,1715032242319,-8668.30132127,0.00013,2]
[326511250,1715032242332,-2052378.60778998,0.00013,2]
[326511260,1715032242389,-322.87653265,0.00013,2]
[326511263,1715032242402,-372.9062764,0.00013,2]
[326511265,1715032242415,-3175.82164568,0.00013,2]
[326511267,1715032242427,-1848.7835296,0.00013,2]
[326511269,1715032242441,-7600.64259491,0.00013,2]
[326511271,1715032242452,-269.94972712,0.00013,2]
[326511273,1715032242465,-1130.71592086,0.00013,2]
[326511276,1715032242477,-6003.1,0.00013,2]
[326511278,1715032242490,-3006.39999998,0.00013,2]
[326511280,1715032242503,-1046.7296758,0.00013,2]
[326511283,1715032242516,-460.63094984,0.00013,2]
[326511285,1715032242528,-1806.80366769,0.00013,2]
[326511287,1715032242540,-292.39394109,0.00013,2]
[326511289,1715032242553,-361.81867662,0.00013,2]
[326511292,1715032242565,-50000.0,0.00013,2]
[326511294,1715032242578,-229778.04597203,0.00013,2]
[326511296,1715032242591,-476.2010242,0.00013,2]
[326511298,1715032242604,-1149.42897912,0.00013,2]
[326511300,1715032242618,-281.70783134,0.00013,2]
[326511302,1715032242631,-330.37221935,0.00013,2]
[326511305,1715032242644,-264.4956,0.00013,2]
[326511307,1715032242656,-1735.92,0.00013,2]
[326511309,1715032242669,-712.87,0.00013,2]
[326511311,1715032242682,-394.58890495,0.00013,2]
[326511314,1715032242694,-1147.94373023,0.00013,2]
[326511316,1715032242706,-896.82497611,0.00013,2]
[326511318,1715032242719,-1936.30233084,0.00013,2]
[326511320,1715032242731,-492.31580113,0.00013,2]
[326511323,1715032242743,-489.59093316,0.00013,2]
[326511325,1715032242755,-583.612171,0.00013,2]
[326511327,1715032242767,-627.57,0.00013,2]
[326511467,1715032244483,-302.24194133,0.00013,2]
[326511471,1715032244494,-23472.60050092,0.00013,2]
[326511511,1715032245272,-12209.01935755,0.00013,2]
[326511512,1715032245284,-656.47347521,0.00013,2]
[326511513,1715032245302,-29476.18022524,0.00013,2]
[326511514,1715032245314,-380.09684506,0.00013,2]
[326511515,1715032245326,-526.72600002,0.00013,2]
[326511537,1715032247243,-166.14,0.00012989,2]
[326511539,1715032247254,-166.14,0.00012989,2]
[326511541,1715032247263,-166.14,0.0001299,2]
[326511543,1715032247274,-166.14,0.0001299,2]
[326511545,1715032247284,-352.584,0.00013,2]
[326511546,1715032247303,-277.02300001,0.00013,2]
[326511547,1715032247314,-49315.64256,0.00013,2]
[326511575,1715033433193,-200.61574008,8.68e-05,2]
[326511576,1715033433203,-377.41791327,8.68e-05,2]
[326511577,1715033433214,-155.0,8.681e-05,2]
[326511578,1715033433225,-488.07399293,8.681e-05,2]
[326511579,1715033433236,-3056.28141522,8.682e-05,2]
[326511580,1715033433246,-2237.21366268,8.683e-05,2]
[326511581,1715033433261,-121.57410145,8.683e-05,2]
[326511582,1715033433271,-241.22699855,8.683e-05,2]
[326511583,1715033436183,-84.98984978,8.683e-05,2]
[326511585,1715033436193,-150.0,8.688e-05,2]
[326511586,1715033436202,-7317.19816286,8.688e-05,2]
[326511587,1715033436215,-704.92261432,8.688e-05,2]
[326511588,1715033436227,-667.39206051,8.688e-05,2]
[326511589,1715033436240,-2203.97488,8.688e-05,2]
[326511590,1715033436252,-434.00509907,8.688e-05,2]
[326511591,1715033436266,-527.18712473,8.688e-05,2]
[326511592,1715033436277,-523.28591813,8.688e-05,2]
[326511593,1715033436290,-250.0,8.688e-05,2]
[326511594,1715033436302,-6838.53737272,8.688e-05,2]
[326511595,1715033436313,-170.46,8.702e-05,2]
[326511596,1715033436322,-210.0,9.557e-05,2]
[326511597,1715033436334,-204.28283937,0.0001,2]
[326511598,1715033436344,-210.0,0.00010513,2]
[326511599,1715033436354,-7456.16475973,0.00010671,2]
[326511600,1715033436366,-2858.32524027,0.00010671,2]
[326511601,1715033436376,-1783.75,0.00010677,2]
[326511602,1715033436385,-299.99,0.00010677,2]
[326511603,1715033436396,-250.0,0.00010687,2]
[326511604,1715033436405,-3710.82228715,0.0001069,2]
[326511605,1715033436417,-590.12,0.0001069,2]
[326511606,1715033436429,-853.15156266,0.0001069,2]
[326511607,1715033436440,-741.8811006,0.0001069,2]
[326511608,1715033436451,-1231.98607209,0.0001069,2]
[326511609,1715033436463,-7255.52333214,0.0001069,2]
[326511610,1715033436475,-9516.51564536,0.0001069,2]
[326511611,1715033436484,-8923.36,0.0001069,2]
[326511612,1715033436494,-1290.8,0.00010799,2]
[326511613,1715033436504,-999.99,0.00010799,2]
[326511614,1715033436513,-3472.69,0.00010809,2]
[326511615,1715033436523,-320.0,0.00010832,2]
[326511616,1715033436533,-1852.42,0.00010849,2]
[326511617,1715033436543,-266.98,0.00010855,2]
[326511618,1715033436552,-6309.73,0.00010909,2]
[326511619,1715033436563,-950.37,0.00011085,2]
[326511620,1715033436572,-258.89,0.00011085,2]
[326511621,1715033436582,-491.43,0.000111,2]
[326511622,1715033436592,-10000.0,0.00011111,2]
[326511623,1715033436602,-150.99,0.00011111,2]
[326511624,1715033436616,-2558.85,0.00011111,2]
[326511625,1715033436625,-927.13,0.0001112,2]
[326511626,1715033436635,-277.53,0.00011129,2]
[326511627,1715033436646,-589.48,0.00011169,2]
[326511628,1715033436656,-218.28,0.00011181,2]
[326511629,1715033436666,-589.48,0.000112,2]
[326511630,1715033436676,-589.48,0.00011231,2]
[326511631,1715033436687,-589.48,0.00011261,2]
[326511632,1715033436697,-589.48,0.00011292,2]
[326511633,1715033436706,-589.48,0.00011323,2]
[326511634,1715033436716,-183.94,0.00011342,2]
[326511635,1715033436728,-589.48,0.00011353,2]
[326511636,1715033436739,-589.48,0.00011384,2]
[326511637,1715033436748,-589.48,0.00011414,2]
[326511638,1715033436758,-589.48,0.00011445,2]
[326511639,1715033436768,-589.48,0.00011476,2]
[326511640,1715033436778,-589.48,0.00011506,2]
[326511641,1715033436788,-589.48,0.00011537,2]
[326511642,1715033436797,-589.48,0.00011568,2]
[326511643,1715033436807,-589.48,0.00011598,2]
[326511644,1715033436816,-589.48,0.00011629,2]
[326511645,1715033436826,-175.72,0.00011633,2]
[326511646,1715033436835,-589.48,0.00011659,2]
[326511647,1715033436845,-589.48,0.0001169,2]
[326511648,1715033436855,-589.48,0.00011721,2]
[326511649,1715033436864,-589.48,0.00011751,2]
[326511650,1715033436873,-301.4,0.00011803,2]
[326511651,1715033436883,-301.4,0.00011806,2]
[326511652,1715033436892,-301.4,0.00011809,2]
[326511653,1715033436901,-301.4,0.00011812,2]
[326511654,1715033436911,-301.4,0.00011815,2]
[326511655,1715033436920,-301.4,0.00011818,2]
[326511656,1715033436930,-301.4,0.00011822,2]
[326511657,1715033436939,-301.4,0.00011825,2]
[326511658,1715033436948,-301.4,0.00011828,2]
[326511659,1715033436958,-301.4,0.00011831,2]
[326511660,1715033436967,-301.4,0.00011834,2]
[326511661,1715033436978,-301.4,0.00011837,2]
[326511662,1715033436987,-301.4,0.0001184,2]
[326511663,1715033436997,-301.4,0.00011843,2]
[326511664,1715033437007,-301.4,0.00011846,2]
[326511665,1715033437016,-301.4,0.00011849,2]
[326511666,1715033437026,-301.4,0.00011853,2]
[326511667,1715033437036,-301.4,0.00011856,2]
[326511668,1715033437046,-301.4,0.00011859,2]
[326511669,1715033437056,-301.4,0.00011862,2]
[326511670,1715033437066,-1325.74444361,0.00012121,2]
[326511671,1715033437076,-320.0,0.00012186,2]
[326511672,1715033437085,-172.95,0.00012341,2]
[326511673,1715033437095,-508.57,0.00012426,2]
[326511674,1715033437105,-491.43,0.00012488,2]
[326511675,1715033437115,-218.28,0.00012578,2]
[326511676,1715033437124,-3647.19944605,0.00012614,2]
[326511677,1715033437134,-1710.03868352,0.00012736,2]
[326511678,1715033437144,-223.65370089,0.00012785,2]
[326511679,1715033437157,-160.30085168,0.00012796,2]
[326511680,1715033437168,-2653.90192616,0.000128,2]
[326511681,1715033437179,-155.69435453,0.00012896,2]
[326511682,1715033437189,-193.1194785,0.00012897,2]
[326511683,1715033437199,-298320.95289764,0.00012899,2]
[326511684,1715033437212,-5314.0001,0.00012899,2]
[326511685,1715033437224,-46423.00998,0.00012899,2]
[326511686,1715033437236,-15066.99998,0.00012899,2]
[326511687,1715033437248,-638.49582452,0.00012899,2]
[326511688,1715033437260,-2791.05680083,0.00012899,2]
[326511689,1715033437272,-982.21119649,0.00012899,2]
[326511690,1715033437284,-13385.39801569,0.00012899,2]
[326511691,1715033437296,-447.53187127,0.00012899,2]
[326511692,1715033437308,-13503.54683776,0.00012899,2]
[326511701,1715033444385,-366.43,0.00010687,2]
[326511706,1715033444397,-232742.9341737,0.00012899,2]
[326511709,1715033444409,-57575.45817269,0.00012899,2]
[326511711,1715033444419,-544.28266801,0.000129,2]
[326511713,1715033444430,-7892.51455647,0.000129,2]
[326511715,1715033444440,-155.74584434,0.00012997,2]
[326511717,1715033444450,-328.98309878,0.00012997,2]
[326511720,1715033444460,-156.38305915,0.00012997,2]
[326511723,1715033444471,-1211.30074394,0.00012997,2]
[326511726,1715033444480,-1244.4085051,0.00012997,2]
[326511729,1715033444490,-227.12393149,0.00012997,2]
[326511732,1715033444499,-11427.55860354,0.00012997,2]
[326511735,1715033444509,-408.81148644,0.00012997,2]
[326511737,1715033444519,-1195.50843718,0.00012997,2]
[326511738,1715033444529,-703.55103321,0.00012997,2]
[326511739,1715033444539,-1000.0,0.00012998,2]
[326511740,1715033444548,-432.32117938,0.00012998,2]
[326511741,1715033444558,-655.55710603,0.00012998,2]
[326511742,1715033444568,-299.47933705,0.00012998,2]
[326511743,1715033444578,-1000.0,0.00012999,2]
[326511744,1715033444588,-5013.88487616,0.00012999,2]
[326511745,1715033444598,-338865.04083573,0.00013,2]
[326511746,1715033444611,-1937.52376934,0.00013,2]
[326511747,1715033444623,-667.34675804,0.00013,2]
[326511748,1715033444635,-518.94618326,0.00013,2]
[326511749,1715033444647,-963.73178324,0.00013,2]